[Event "RUS-ch Women Rapid 2019"]
[Site "Sochi"]
[Date "2019.10.16"]
[Round "11.8"]
[White "Bivol, Alina"]
[Black "Dumcheva, Julia"]
[Result "1-0"]
[ECO "E68"]
[WhiteElo "2283"]
[BlackElo "2168"]
[Annotator "NA"]
[PlyCount "83"]
[EventDate "2019.10.15"]
[EventType "swiss"]
[EventCountry "RUS"]
[SourceTitle "playchess.com"]
[Source "ChessBase"]
[SourceQuality "1"]
[TimeControl "900+10"]

1. c4 {[%emt 0:00:00]} Nf6 {[%emt 0:00:00]} 2. g3 {[%emt 0:00:00]} g6 {[%emt 0:00:00]} 3. d4 {[%emt 0:00:00]} Bg7 {[%emt 0:00:00]} 4. Bg2 {[%emt 0:00:00]} O-O {[%emt 0:00:03]} 5. Nc3 {[%emt 0:00:04]} d6 {[%emt 0:00:03]} 6. Nf3 {[%emt 0:00:01]} Nbd7 {[%emt 0:00:11]} 7. O-O {[%emt 0:00:04]} e5 {[%emt 0:00:22]} 8. e4 {[%emt 0:00:02]} c6 {[%emt 0:00:09]} 9. Re1 {[%emt 0:00:11]} Qc7 {[%emt 0:00:19]} 10. h3 {[%emt 0:00:09]} Re8 {[%emt 0:00:33]} 11. Be3 {[%emt 0:00:31]} Nf8 {[%emt 0:01:16]} 12. Qc2 {[%emt 0:00:16]} Be6 {[%emt 0:00:25]} 13. b3 {[%emt 0:00:04]} Qa5 {[%emt 0:00:14]} 14. Rad1 {[%emt 0:01:09]} Rad8 {[%emt 0:02:03]} 15. dxe5 {[%emt 0:00:19]} dxe5 {[%emt 0:00:05]} 16. Na4 {[%emt 0:00:28]} b6 {[%emt 0:01:11]} 17. Bd2 {[%emt 0:00:25]} Qa6 {[%emt 0:00:37]} 18. Nxe5 {[%emt 0:00:09]} Qc8 {[%emt 0:00:17]} 19. Kh2 {[%emt 0:00:24]} Nh5 {[%emt 0:01:44]} 20. Nf3 {[%emt 0:00:18]} Qc7 {[%emt 0:00:25]} 21. Bg5 {[%emt 0:00:38]} f6 {[%emt 0:00:22]} 22. Bc1 {[%emt 0:00:01]} Bf7 {[%emt 0:00:51]} 23. Rxd8 {[%emt 0:00:30]} Rxd8 {[%emt 0:00:01]} 24. Rd1 {[%emt 0:00:15]} Re8 {[%emt 0:00:06]} 25. Nc3 {[%emt 0:00:09]} Ne6 {[%emt 0:00:07]} 26. Be3 {[%emt 0:00:27]} Bf8 {[%emt 0:01:09]} 27. Ne2 {[%emt 0:00:47]} Bd6 {[%emt 0:00:20]} 28. Kg1 {[%emt 0:00:03]} Nc5 {[%emt 0:00:42]} 29. Nfd4 {[%emt 0:00:03]} Ne6 {[%emt 0:01:06]} 30. Nxe6 {[%emt 0:00:22]} Bxe6 {[%emt 0:00:10]} 31. c5 {[%emt 0:01:08]} Be7 {[%emt 0:00:14]} 32. cxb6 {[%emt 0:00:03]} axb6 {[%emt 0:00:05]} 33. Nd4 {[%emt 0:00:12]} Bd7 {[%emt 0:00:22]} 34. Nb5 {[%emt 0:00:07]} Qc8 {[%emt 0:00:27]} 35. Nd6 {[%emt 0:00:36]} Bxd6 {[%emt 0:00:07]} 36. Rxd6 {[%emt 0:00:01]} Bxh3 {[%emt 0:01:14]} 37. Qxc6 {[%emt 0:00:09]} Bxg2 {[%emt 0:01:30]} 38. Kxg2 {[%emt 0:01:07]} Qb8 {[%emt 0:00:15]} 39. Qd5+ {[%emt 0:00:19]} Kh8 {[%emt 0:00:11]} 40. Rxb6 {[%emt 0:00:09]} Qc8 {[%emt 0:01:11]} 41. Rb7 {[%emt 0:00:24]} Nxg3 {[%emt 0:00:37]} 42. Qf7 {[%emt 0:00:19]} 1-0

[Event "RUS-ch Women Rapid 2019"]
[Site "Sochi"]
[Date "2019.10.16"]
[Round "11.9"]
[White "Ovod, Evgenija"]
[Black "Lysenko, Margarita"]
[Result "1/2-1/2"]
[ECO "B22"]
[WhiteElo "2347"]
[BlackElo "2243"]
[Annotator "NA"]
[PlyCount "99"]
[EventDate "2019.10.15"]
[EventType "swiss"]
[EventCountry "RUS"]
[SourceTitle "playchess.com"]
[Source "ChessBase"]
[SourceQuality "1"]
[TimeControl "900+10"]

1. e4 {[%emt 0:00:00]} c5 {[%emt 0:00:01]} 2. c3 {[%emt 0:00:00]} g6 {[%emt 0:00:07]} 3. d4 {[%emt 0:00:00]} cxd4 {[%emt 0:00:02]} 4. cxd4 {[%emt 0:00:00]} d5 {[%emt 0:00:02]} 5. e5 {[%emt 0:00:00]} a6 {[%emt 0:00:10]} 6. Nc3 {[%emt 0:00:13]} Nc6 {[%emt 0:00:02]} 7. h3 {[%emt 0:00:14]} Bg7 {[%emt 0:00:31]} 8. Nf3 {[%emt 0:00:44]} f6 {[%emt 0:00:22]} 9. exf6 {[%emt 0:01:41]} Nxf6 {[%emt 0:00:06]} 10. Bd3 {[%emt 0:00:22]} O-O {[%emt 0:00:19]} 11. O-O {[%emt 0:00:05]} Nh5 {[%emt 0:01:30]} 12. Bc2 {[%emt 0:00:09]} Kh8 {[%emt 0:03:51]} 13. Bb3 {[%emt 0:00:20]} Be6 {[%emt 0:00:26]} 14. Re1 {[%emt 0:00:30]} Bg8 {[%emt 0:00:12]} 15. Bg5 {[%emt 0:00:14]} Nf4 {[%emt 0:03:05]} 16. Bh4 {[%emt 0:02:15]} b5 {[%emt 0:01:15]} 17. Rc1 {[%emt 0:00:23]} Qd7 {[%emt 0:00:16]} 18. Bg3 {[%emt 0:02:52]} Rac8 {[%emt 0:00:35]} 19. Kh2 {[%emt 0:01:14]} Qf5 {[%emt 0:02:14]} 20. Ne2 {[%emt 0:02:49]} Nxg2 {[%emt 0:00:56]} 21. Kxg2 {[%emt 0:00:54]} Qxf3+ {[%emt 0:00:03]} 22. Kh2 {[%emt 0:00:02]} Qh5 {[%emt 0:01:45]} 23. Rc3 {[%emt 0:00:41]} b4 {[%emt 0:00:31]} 24. Re3 {[%emt 0:01:02]} e5 {[%emt 0:00:11]} 25. dxe5 {[%emt 0:00:42]} Nxe5 {[%emt 0:00:06]} 26. Nf4 {[%emt 0:00:17]} Qxd1 {[%emt 0:00:21]} 27. Rxd1 {[%emt 0:01:12]} Nc4 {[%emt 0:00:07]} 28. Re7 {[%emt 0:00:04]} Nxb2 {[%emt 0:00:21]} 29. Rb1 {[%emt 0:00:31]} Nc4 {[%emt 0:00:08]} 30. Ne6 {[%emt 0:00:10]} Bxe6 {[%emt 0:00:04]} 31. Rxe6 {[%emt 0:00:01]} a5 {[%emt 0:00:16]} 32. Rd1 {[%emt 0:00:03]} d4 {[%emt 0:00:08]} 33. Ra6 {[%emt 0:00:21]} Rfe8 {[%emt 0:00:14]} 34. Bxc4 {[%emt 0:00:05]} Rxc4 {[%emt 0:00:01]} 35. Rxa5 {[%emt 0:00:01]} Rc2 {[%emt 0:00:12]} 36. Rb1 {[%emt 0:00:06]} d3 {[%emt 0:00:06]} 37. Rd5 {[%emt 0:00:11]} d2 {[%emt 0:00:06]} 38. Rxb4 {[%emt 0:00:05]} Rxa2 {[%emt 0:00:04]} 39. Rb3 {[%emt 0:00:05]} h5 {[%emt 0:00:23]} 40. Rbd3 {[%emt 0:00:03]} Bh6 {[%emt 0:00:16]} 41. Kg2 {[%emt 0:00:12]} Rc2 {[%emt 0:00:11]} 42. Be5+ {[%emt 0:00:31]} Kg8 {[%emt 0:00:02]} 43. h4 {[%emt 0:00:09]} Rc1 {[%emt 0:00:07]} 44. f4 {[%emt 0:00:11]} Rc4 {[%emt 0:00:16]} 45. Kf3 {[%emt 0:00:05]} Rf8 {[%emt 0:00:05]} 46. R5d4 {[%emt 0:00:09]} Rxd4 {[%emt 0:00:20]} 47. Rxd4 {[%emt 0:00:02]} Bg7 {[%emt 0:00:09]} 48. Bxg7 {[%emt 0:00:03]} Kxg7 {[%emt 0:00:02]} 49. Rxd2 {[%emt 0:00:01]} Rf5 {[%emt 0:00:04]} 50. Ke4 1/2-1/2

[Event "RUS-ch Women Rapid 2019"]
[Site "Sochi"]
[Date "2019.10.16"]
[Round "11.10"]
[White "Fominykh, Maria"]
[Black "Shafigullina, Zarina"]
[Result "1-0"]
[ECO "E15"]
[WhiteElo "2206"]
[BlackElo "2295"]
[Annotator "NA"]
[PlyCount "85"]
[EventDate "2019.10.15"]
[EventType "swiss"]
[EventCountry "RUS"]
[SourceTitle "playchess.com"]
[Source "ChessBase"]
[SourceQuality "1"]
[TimeControl "900+10"]

1. d4 {[%emt 0:00:00]} Nf6 {[%emt 0:00:00]} 2. Nf3 {[%emt 0:00:00]} e6 {[%emt 0:00:00]} 3. c4 {[%emt 0:00:00]} b6 {[%emt 0:00:00]} 4. g3 {[%emt 0:00:03]} Ba6 {[%emt 0:00:00]} 5. Qc2 {[%emt 0:00:14]} c5 {[%emt 0:00:37]} 6. Bg2 {[%emt 0:00:15]} Bb7 {[%emt 0:00:02]} 7. dxc5 {[%emt 0:00:21]} Bxc5 {[%emt 0:00:12]} 8. O-O {[%emt 0:00:02]} Nc6 {[%emt 0:01:41]} 9. a3 {[%emt 0:00:29]} Rc8 {[%emt 0:00:18]} 10. Nc3 {[%emt 0:00:56]} Ba8 {[%emt 0:00:51]} 11. Rd1 {[%emt 0:00:33]} O-O {[%emt 0:01:44]} 12. Bg5 {[%emt 0:00:57]} Be7 {[%emt 0:00:01]} 13. e4 {[%emt 0:01:40]} Ng4 {[%emt 0:00:28]} 14. Bxe7 {[%emt 0:00:48]} Qxe7 {[%emt 0:00:04]} 15. Nb5 {[%emt 0:02:52]} Nce5 {[%emt 0:01:07]} 16. Nxe5 {[%emt 0:00:34]} Nxe5 {[%emt 0:00:03]} 17. b3 {[%emt 0:00:03]} a6 {[%emt 0:05:50]} 18. Nd6 {[%emt 0:00:02]} Rc6 {[%emt 0:00:01]} 19. Qd2 {[%emt 0:00:03]} f6 {[%emt 0:00:50]} 20. a4 {[%emt 0:03:13]} Rc7 {[%emt 0:01:20]} 21. a5 {[%emt 0:00:21]} Rb8 {[%emt 0:00:01]} 22. f4 {[%emt 0:01:15]} Nc6 {[%emt 0:00:27]} 23. axb6 {[%emt 0:00:18]} Rxb6 {[%emt 0:00:11]} 24. Qe3 {[%emt 0:00:15]} Rb8 {[%emt 0:00:52]} 25. Rxa6 {[%emt 0:00:04]} e5 {[%emt 0:00:34]} 26. Rb6 {[%emt 0:00:59]} Rf8 {[%emt 0:00:03]} 27. Nf5 {[%emt 0:00:17]} Qd8 {[%emt 0:00:40]} 28. c5 {[%emt 0:00:54]} g6 {[%emt 0:00:25]} 29. Nd6 {[%emt 0:00:11]} Nd4 {[%emt 0:00:04]} 30. b4 {[%emt 0:00:14]} Ra7 {[%emt 0:00:10]} 31. Nb5 {[%emt 0:00:26]} Nxb5 {[%emt 0:00:18]} 32. Rxb5 {[%emt 0:00:03]} Qc7 {[%emt 0:00:28]} 33. Rb6 {[%emt 0:00:14]} f5 {[%emt 0:00:37]} 34. Rbd6 {[%emt 0:00:35]} exf4 {[%emt 0:00:25]} 35. gxf4 {[%emt 0:00:15]} Qb8 {[%emt 0:00:12]} 36. Qb3+ {[%emt 0:00:07]} Kh8 {[%emt 0:00:00]} 37. Qc3+ {[%emt 0:00:08]} Kg8 {[%emt 0:00:02]} 38. Rxd7 {[%emt 0:00:06]} Rxd7 {[%emt 0:00:14]} 39. Rxd7 Rf7 40. Qc4 {[%emt 0:00:16]} Qe8 {[%emt 0:00:02]} 41. Rxf7 {[%emt 0:00:13]} Qxf7 {[%emt 0:00:01]} 42. Qxf7+ {[%emt 0:00:01]} Kxf7 {[%emt 0:00:01]} 43. exf5 {[%emt 0:00:01]} 1-0

[Event "RUS-ch Women Rapid 2019"]
[Site "Sochi"]
[Date "2019.10.16"]
[Round "11.12"]
[White "Afonasieva, Anna"]
[Black "Vasilevich, Tatjana"]
[Result "1/2-1/2"]
[ECO "E15"]
[WhiteElo "2312"]
[BlackElo "2265"]
[Annotator "NA"]
[PlyCount "70"]
[EventDate "2019.10.15"]
[EventType "swiss"]
[EventCountry "RUS"]
[SourceTitle "playchess.com"]
[Source "ChessBase"]
[SourceQuality "1"]
[TimeControl "900+10"]

1. d4 {[%emt 0:00:00]} Nf6 {[%emt 0:00:00]} 2. Nf3 {[%emt 0:00:00]} e6 {[%emt 0:00:00]} 3. c4 {[%emt 0:00:00]} b6 {[%emt 0:00:00]} 4. g3 {[%emt 0:00:00]} Ba6 {[%emt 0:00:00]} 5. b3 {[%emt 0:00:00]} Bb4+ {[%emt 0:00:00]} 6. Bd2 {[%emt 0:00:00]} Be7 {[%emt 0:00:00]} 7. Bg2 {[%emt 0:00:00]} Bb7 {[%emt 0:00:00]} 8. O-O {[%emt 0:00:01]} O-O {[%emt 0:00:00]} 9. Nc3 {[%emt 0:00:16]} Ne4 {[%emt 0:00:00]} 10. Nxe4 {[%emt 0:00:27]} Bxe4 {[%emt 0:00:01]} 11. Bc3 {[%emt 0:00:02]} d6 {[%emt 0:01:18]} 12. Ne1 {[%emt 0:00:57]} Bxg2 {[%emt 0:01:09]} 13. Kxg2 {[%emt 0:00:02]} f5 {[%emt 0:00:15]} 14. Nd3 {[%emt 0:00:50]} Qe8 {[%emt 0:01:11]} 15. f3 {[%emt 0:00:31]} Nd7 {[%emt 0:00:18]} 16. Nf4 {[%emt 0:00:51]} Bg5 {[%emt 0:00:03]} 17. Bd2 {[%emt 0:00:19]} Bf6 {[%emt 0:02:57]} 18. Be3 {[%emt 0:01:23]} g5 {[%emt 0:00:25]} 19. Nh3 {[%emt 0:00:23]} Qg6 {[%emt 0:00:18]} 20. Rc1 {[%emt 0:00:16]} Rad8 {[%emt 0:01:42]} 21. Qd2 {[%emt 0:01:24]} h6 {[%emt 0:01:20]} 22. Qd3 {[%emt 0:00:21]} Qg7 {[%emt 0:00:26]} 23. Bf2 {[%emt 0:00:51]} Kh8 {[%emt 0:00:31]} 24. e4 {[%emt 0:00:27]} fxe4 {[%emt 0:00:59]} 25. fxe4 {[%emt 0:00:08]} c5 {[%emt 0:04:02]} 26. Rcd1 {[%emt 0:00:48]} cxd4 {[%emt 0:01:14]} 27. Bxd4 {[%emt 0:00:04]} Be5 {[%emt 0:00:26]} 28. Bxe5 {[%emt 0:01:38]} Nxe5 {[%emt 0:00:11]} 29. Qe2 {[%emt 0:01:03]} Nc6 {[%emt 0:00:30]} 30. Nf2 {[%emt 0:00:18]} Nd4 {[%emt 0:00:08]} 31. Qd3 {[%emt 0:00:17]} e5 {[%emt 0:00:14]} 32. Ng4 {[%emt 0:00:09]} Rxf1 {[%emt 0:00:13]} 33. Rxf1 {[%emt 0:00:04]} Rf8 {[%emt 0:00:01]} 34. Ne3 {[%emt 0:00:09]} Kg8 {[%emt 0:00:26]} 35. Nd5 {[%emt 0:00:19]} g4 {[%emt 0:00:07]} 1/2-1/2